bitfinex/quotes_ETHUSD_20240602
["timestamp","ask_amount","ask_price","bid_price","bid_amount"]
[1717303960383,0.12714201,3816.2,3816.1,3.181667]
[1717303960726,0.12714201,3816.2,3816.1,3.730667]
[1717303961506,0.12714201,3816.2,3816.1,3.181667]
[1717303961698,0.12714201,3816.2,3816.1,3.730667]
[1717303984350,0.12615082,3816.2,3816.1,3.730667]
[1717303987052,0.12615082,3816.2,3816.1,6.215967]
[1717303991084,0.12615082,3816.2,3816.1,5.666967]
[1717303991377,0.12615082,3816.2,3816.1,6.215967]
[1717303991684,0.12615082,3816.2,3816.1,5.666967]
[1717303991896,0.12615082,3816.2,3816.1,6.215967]
[1717303996690,0.12615082,3816.2,3816.1,9.215967]
[1717303997652,0.12615082,3816.2,3816.1,11.836437]
[1717303998552,0.12615082,3816.2,3816.1,15.836437]
[1717304003488,0.12615082,3816.2,3816.1,11.836437]
[1717304004374,2.3683,3817.2,3816.9,2.61988]
[1717304004712,2.3683,3817.2,3817.1,0.549]
[1717304012732,7.32,3817.8,3817.1,0.549]
[1717304012733,2.4817,3817.7,3817.1,3.16873]
[1717304012908,2.4817,3817.7,3817.5,0.549]
[1717304016396,2.4817,3817.7,3817.3,2.6196]
[1717304016748,2.4817,3817.7,3817.6,0.549]
[1717304017448,2.61905,3818.2,3817.6,0.549]
[1717304017750,2.4817,3817.9,3817.6,0.549]
[1717304023265,2.4817,3817.9,3817.3,2.6196]
[1717304023451,2.4817,3817.9,3817.5,0.549]
[1717304024879,2.446,3818.5,3817.7,2.2556]
[1717304025089,2.446,3818.5,3818.3,0.549]
[1717304025642,7.32,3818.8,3818.4,0.549]
[1717304025870,5.06457,3818.9,3818.6,0.549]
[1717304026267,2.952457,3818.9,3818.1,2.61909]
[1717304026475,2.61862,3818.8,3818.2,0.549]
[1717304027761,0.55,3818.7,3818.2,0.549]
[1717304028168,2.61862,3818.8,3818.2,0.549]
[1717304031662,2.61862,3818.8,3818.1,2.61909]
[1717304031862,2.61862,3818.8,3818.1,3.16809]
[1717304039302,0.549,3819.1,3817.3,2.61961]
[1717304039303,2.3634,3818.2,3817.3,2.61961]
[1717304039591,2.6191,3818.1,3817.3,3.16861]
[1717304039759,0.55,3818.0,3817.3,2.61961]
[1717304039955,0.55,3818.0,3817.4,0.549]
[1717304040159,0.55,3818.0,3816.9,5.00905]
[1717304040355,0.55,3818.0,3817.3,0.549]
[1717304040556,0.55,3818.0,3817.5,0.549]
[1717304041490,0.55,3818.0,3817.4,0.549]
[1717304041696,2.61926,3817.9,3817.0,0.23892]
[1717304041885,0.55,3817.8,3817.4,0.549]
[1717304043301,4.98279,3817.7,3817.1,0.549]
[1717304046506,2.61912,3818.1,3817.6,0.549]
[1717304046671,2.61912,3818.1,3817.9,0.549]
[1717304048301,2.61912,3818.1,3817.3,2.3892]
[1717304048502,2.61912,3818.1,3817.6,0.549]
[1717304051065,2.61912,3818.1,3817.3,0.500891]
[1717304051266,2.61912,3818.1,3817.6,0.549]
[1717304058321,2.61912,3818.1,3817.2,2.61971]
[1717304058619,2.61912,3818.1,3817.5,0.549]
[1717304065913,2.61912,3818.1,3817.4,2.61956]
[1717304066219,2.61912,3818.1,3817.6,0.549]
[1717304069219,2.3634,3818.2,3817.6,0.549]
[1717304069736,2.61889,3818.5,3817.8,0.549]
[1717304070032,2.61889,3818.5,3817.8,0.865836]
[1717304073997,7.32,3818.7,3818.3,0.549]
[1717304074205,2.61863,3818.8,3818.5,0.549]
[1717304074755,2.61863,3818.8,3818.3,0.549]
[1717304075237,2.2973,3818.7,3818.1,2.61908]
[1717304075551,2.2973,3818.7,3818.2,0.549]
[1717304076855,2.61863,3818.8,3818.2,0.549]
[1717304077070,0.0656463,3819.5,3818.7,0.549]
[1717304077272,0.0656463,3819.5,3819.1,0.549]
[1717304077427,0.0656463,3819.5,3818.2,2.488]
[1717304077629,0.0656463,3819.5,3818.9,0.549]
[1717304078166,0.0656463,3819.5,3818.3,0.2488]
[1717304078368,2.6837963,3819.5,3818.8,0.549]
[1717304079441,5.0340963,3819.5,3818.7,0.549]
[1717304079641,5.5830963,3819.5,3818.6,2.61875]
[1717304079854,3.16729,3819.3,3818.3,2.61896]
[1717304080167,3.16729,3819.3,3818.3,3.16796]
[1717304080530,2.61849,3819.0,3818.3,3.16796]
[1717304080730,0.55,3818.9,3818.3,3.16796]
[1717304081251,0.5,3818.9,3818.3,3.16796]
[1717304081635,0.5,3818.9,3818.3,0.549]
[1717304083267,0.5,3818.9,3817.9,2.61918]
[1717304083448,0.5,3818.9,3818.3,0.549]
[1717304084809,0.5,3818.9,3818.0,0.5348916]
[1717304084973,0.5,3818.9,3818.4,0.549]
[1717304086749,0.45,3818.9,3818.4,0.549]
[1717304086983,0.45,3818.9,3818.0,0.5348916]
[1717304087188,0.45,3818.9,3818.3,0.549]
[1717304091552,0.45,3818.9,3818.0,0.5348916]
[1717304091755,0.45,3818.9,3818.4,0.549]
[1717304092709,2.3058,3818.8,3818.4,0.549]
[1717304092994,2.3058,3818.8,3818.3,0.549]
[1717304096762,2.3058,3818.8,3818.0,0.5348916]
[1717304096978,0.45,3818.9,3818.3,0.549]
[1717304118651,2.4488,3818.8,3818.3,0.549]
[1717304121367,5.06747,3818.8,3818.1,0.549]
[1717304122452,5.06747,3818.8,3818.1,0.91931816]
[1717304131421,5.06747,3818.8,3818.3,0.549]
[1717304135363,2.61867,3818.8,3818.3,0.549]
[1717304135545,2.3243,3819.0,3818.3,0.549]
[1717304137941,2.3243,3819.0,3818.2,0.549]
[1717304138142,2.3243,3819.0,3818.2,0.95633198]
[1717304140043,2.3243,3819.0,3818.4,0.549]
[1717304144978,2.3243,3819.0,3818.6,0.549]
[1717304146171,2.3243,3819.0,3818.4,0.549]
[1717304147769,2.3243,3819.0,3818.8,0.549]
[1717304148177,2.3243,3819.0,3818.6,0.549]
[1717304149983,7.32,3819.3,3818.8,0.549]
[1717304150187,7.32,3819.3,3819.0,0.549]
[1717304151278,7.32,3819.3,3818.5,2.61882]
[1717304151279,7.32,3819.3,3818.8,0.549]
[1717304153085,5.11092,3819.4,3818.8,0.549]
[1717304153282,0.55,3819.3,3818.8,0.549]
[1717304153783,0.55,3819.3,3818.5,2.61882]
[1717304153985,0.55,3819.3,3818.8,0.549]
[1717304160574,0.55,3819.3,3818.6,0.549]
[1717304163995,2.3177,3819.2,3818.6,0.549]
[1717304166682,2.3177,3819.2,3818.5,2.61882]
[1717304166884,2.3177,3819.2,3818.6,0.549]
[1717304170071,2.3177,3819.2,3818.5,2.61882]
[1717304171313,4.93611,3819.2,3818.2,3.02634198]
[1717304171510,2.3177,3819.1,3818.4,0.549]
[1717304178205,2.61852,3819.0,3818.2,2.61901]
[1717304178426,2.4625,3818.9,3818.3,0.549]
[1717304178921,2.4625,3818.9,3818.2,2.61901]
[1717304179216,2.61863,3818.8,3818.2,0.549]
[1717304193204,2.61863,3818.8,3817.9,2.61922]
[1717304193427,2.61863,3818.8,3818.0,0.261922]
[1717304193631,2.61863,3818.8,3818.3,0.549]
[1717304211672,7.32,3819.2,3818.3,0.549]
[1717304211673,9.93839,3819.2,3818.3,0.549]
[1717304211895,0.56617006,3819.1,3818.9,0.549]
[1717304212228,9.7955,3819.6,3818.9,0.549]
[1717304212384,9.7955,3819.6,3819.2,0.549]
[1717304212385,0.63174126,3819.5,3819.2,0.549]
[1717304212685,0.0656463,3819.5,3819.2,0.549]
[1717304215853,0.0656463,3819.5,3818.9,2.61855]
[1717304216067,0.0656463,3819.5,3819.1,0.549]
[1717304218875,0.0656463,3819.5,3819.1,1.111705]
[1717304220290,2.3251,3819.4,3819.1,1.111705]
[1717304221371,0.0656463,3819.5,3819.1,1.111705]
[1717304223898,0.0656463,3819.5,3819.1,0.562705]
[1717304225660,0.0656463,3819.5,3819.2,0.549]
[1717304238028,0.0656463,3819.5,3819.2,0.550045]
[1717304238324,0.0656463,3819.5,3819.4,0.549]
[1717304239341,0.0656463,3819.5,3819.4,2.842]
[1717304239634,0.0656463,3819.5,3819.4,0.549]
[1717304240603,0.0656463,3819.5,3819.4,2.842]
[1717304241399,0.0656463,3819.5,3819.4,5.842]
[1717304241607,0.0656463,3819.5,3819.4,6.949863]
[1717304242319,0.127142,3820.0,3819.5,2.293]
[1717304242628,0.127142,3820.0,3819.9,2.842]
[1717304242831,0.127142,3820.0,3819.9,5.842]
[1717304243128,0.127142,3820.0,3819.9,6.4262]
[1717304243295,0.127142,3820.0,3819.9,9.04406]
[1717304243698,0.127142,3820.0,3819.9,8.49506]
[1717304243894,0.127142,3820.0,3819.9,9.04406]
[1717304247140,0.127142,3820.0,3819.9,3.20206]
[1717304247321,0.127142,3820.0,3819.9,3.16686]
[1717304247714,0.127142,3820.0,3819.9,2.61786]
[1717304247912,0.127142,3820.0,3819.9,3.16686]
[1717304253115,0.127142,3820.0,3819.5,2.293]
[1717304253116,0.127142,3820.0,3819.5,2.61813]
[1717304253319,2.3128,3819.9,3819.7,0.549]
[1717304256116,2.3128,3819.9,3819.1,2.61835]
[1717304256423,2.3128,3819.9,3819.4,0.549]
[1717304257060,2.3128,3819.7,3818.7,2.61867]
[1717304257226,2.3128,3819.7,3819.2,0.549]
[1717304257633,2.61808,3819.6,3819.2,0.549]
[1717304257858,2.61808,3819.6,3818.8,0.494107]
[1717304258069,2.61808,3819.6,3819.2,0.549]
[1717304258251,2.4899,3819.5,3819.0,0.549]
[1717304258439,2.4899,3819.5,3819.2,0.549]
[1717304261684,2.4899,3819.5,3818.7,2.61867]
[1717304261971,2.4899,3819.5,3819.0,0.549]
[1717304263248,2.61823,3819.4,3818.3,2.61891]
[1717304263449,2.4899,3819.3,3818.7,0.549]
[1717304265266,2.4899,3819.1,3818.0,2.61916]
[1717304265566,2.4899,3819.1,3818.4,0.549]
[1717304265781,0.549,3819.4,3818.6,0.549]
[1717304265782,2.4899,3819.4,3818.6,0.549]
[1717304265961,2.4899,3819.4,3818.9,0.549]
[1717304267451,2.61828,3819.3,3818.9,0.549]
[1717304271685,2.61828,3819.3,3818.7,0.549]
[1717304271877,2.61828,3819.3,3818.7,1.101713]
[1717304280292,2.61828,3819.3,3818.7,0.552713]
[1717304280596,2.61828,3819.3,3818.6,0.549]
[1717304280804,0.127142,3820.0,3818.8,0.549]
[1717304280957,0.127142,3820.0,3819.4,0.549]
[1717304281409,2.744952,3820.0,3819.4,0.549]
[1717304281895,0.127142,3820.0,3819.4,0.549]
[1717304285291,0.127142,3820.0,3819.4,1.107713]
[1717304288810,2.3867,3819.9,3819.4,0.558713]
[1717304288997,2.3867,3819.9,3819.3,0.549]
[1717304293072,2.3867,3819.9,3819.2,2.61833]
[1717304293273,2.3867,3819.9,3819.3,0.549]
[1717304293908,2.3867,3819.9,3819.2,2.61833]
[1717304294828,2.3867,3819.9,3819.2,3.16733]
[1717304298305,2.3867,3819.9,3819.4,0.549]
[1717304298723,0.127142,3820.0,3819.4,0.549]
[1717304298916,0.127142,3820.0,3819.6,0.549]
[1717304304189,0.127142,3820.0,3819.4,2.61816]
[1717304304409,2.418442,3820.0,3819.5,0.549]
[1717304307337,2.418442,3820.0,3819.5,1.1407593]
[1717304308929,0.127142,3820.0,3819.9,0.549]
[1717304310413,0.127142,3820.0,3819.9,3.16686]
[1717304312694,0.127142,3820.0,3819.9,2.61786]
[1717304312893,0.127142,3820.0,3819.9,3.672016]
[1717304318396,0.127142,3820.0,3819.9,6.672016]
[1717304324199,0.127142,3820.0,3819.9,6.123016]
[1717304324404,0.127142,3820.0,3819.9,3.16686]
[1717304324609,2.577342,3820.0,3819.5,2.61808]
[1717304324807,2.577342,3820.0,3819.7,0.549]
[1717304326445,2.577342,3820.0,3819.5,2.61808]
[1717304326764,2.577342,3820.0,3819.1,2.61838]
[1717304327067,2.577342,3820.0,3819.7,0.549]
[1717304328765,2.577342,3820.0,3819.4,2.61816]
[1717304328968,2.577342,3820.0,3819.9,0.549]
[1717304333643,0.127142,3820.0,3819.9,0.549]
[1717304347892,2.622742,3820.0,3819.9,0.549]
[1717304353275,2.622742,3820.0,3819.7,3.16698]
[1717304353479,2.622742,3820.0,3819.3,2.61821]
[1717304353686,0.127142,3820.0,3819.6,0.549]
[1717304354484,0.127142,3820.0,3819.8,0.549]
[1717304355113,0.127142,3820.0,3819.5,2.61809]
[1717304355313,0.127142,3820.0,3819.9,0.549]
[1717304356134,0.127142,3820.0,3819.7,0.549]
[1717304358388,2.4919,3819.9,3819.5,2.61809]
[1717304358620,2.4919,3819.9,3819.6,0.549]
[1717304358819,2.4919,3819.9,3819.8,0.549]
[1717304360231,2.4919,3819.9,3819.5,2.61809]
[1717304360387,2.4919,3819.9,3819.7,0.549]
[1717304363982,2.4919,3819.9,3819.5,2.61809]
[1717304364185,2.4919,3819.9,3819.7,0.549]
[1717304372508,0.127142,3820.0,3819.7,0.549]
[1717304375459,0.127142,3820.0,3819.9,0.549]
[1717304377450,0.127142,3820.0,3819.9,3.549]
[1717304377823,0.127142,3820.0,3819.9,5.9619]
[1717304385857,2.2727,3821.1,3820.0,2.2762]
[1717304386063,2.2727,3821.1,3821.0,0.549]
[1717304386933,9.93659,3821.8,3821.0,0.549]
[1717304387135,2.2727,3821.3,3821.0,0.549]
[1717304388268,2.2727,3822.1,3821.2,0.549]
[1717304388564,2.37621363,3822.0,3821.4,0.549]
[1717304388768,2.2727,3822.1,3821.7,0.549]
[1717304388973,2.2727,3822.1,3821.4,2.61681]
[1717304389265,2.2727,3822.1,3821.9,0.549]
[1717304390529,4.88905,3822.2,3821.9,0.549]
[1717304392430,2.2727,3822.0,3821.0,2.61706]
[1717304392630,2.2727,3822.0,3821.3,0.549]
[1717304393427,2.2727,3822.0,3821.5,0.549]
[1717304393735,0.543905,3821.9,3821.5,0.549]
[1717304395345,2.2727,3822.0,3821.5,0.549]
[1717304395783,2.2727,3822.0,3821.0,4.89326]
[1717304396087,2.2727,3822.0,3821.6,0.549]
[1717304399755,2.2727,3822.0,3821.3,2.6169]
[1717304399954,2.2727,3822.0,3821.5,0.549]
[1717304403248,2.2727,3822.0,3821.7,0.549]
[1717304403450,2.2727,3822.0,3821.5,0.05233186]
[1717304403451,2.2727,3822.0,3821.8,0.549]
[1717304403850,2.61635,3822.2,3821.8,0.549]
[1717304404056,2.61635,3822.2,3821.3,2.6169]
[1717304404057,2.61635,3822.2,3821.6,0.549]
[1717304404256,2.61635,3822.2,3821.3,2.6169]
[1717304404456,2.61635,3822.2,3821.5,0.549]
[1717304406159,2.4204,3822.6,3821.7,2.61662]
[1717304406364,2.61625,3822.3,3821.3,2.6169]
[1717304406565,2.61643,3822.0,3821.3,2.6169]
[1717304406764,2.61643,3822.0,3821.4,0.549]
[1717304407309,2.61623,3822.3,3821.6,3.0146]
[1717304407466,2.61623,3822.3,3821.8,0.549]
[1717304407900,5.03642,3822.6,3822.0,0.549]
[1717304408266,5.03642,3822.6,3821.6,5.08228]
[1717304408507,5.03642,3822.6,3821.8,0.549]
[1717304408807,2.61623,3822.3,3821.8,0.549]
[1717304409405,2.61642,3822.1,3821.7,0.549]
[1717304411101,2.61657,3821.8,3821.0,2.4656]
[1717304411301,2.61657,3821.8,3821.1,0.538278]
[1717304411507,5.03697,3821.8,3821.4,0.549]
[1717304412518,5.03697,3821.8,3820.8,0.3]
[1717304412519,2.9694,3821.8,3820.8,0.3]
[1717304412710,2.61691,3821.3,3820.8,0.849]
[1717304412911,2.61691,3821.3,3820.9,0.33146]
[1717304413409,2.61706,3821.1,3820.0,2.61776]
[1717304413609,2.61706,3821.1,3820.5,0.549]
[1717304414111,2.61706,3821.1,3820.0,6.61776]
[1717304414277,2.61706,3821.1,3820.5,0.549]
[1717304414474,2.61706,3821.1,3820.0,6.61776]
[1717304414712,2.61706,3821.1,3820.5,0.549]
[1717304414882,2.61706,3821.1,3820.1,0.908336]
[1717304415214,2.61706,3821.1,3820.4,0.549]
[1717304417027,2.61706,3821.1,3820.6,0.549]
[1717304418816,4.88493,3821.5,3821.0,0.549]
[1717304419033,4.88493,3821.5,3821.2,0.549]
[1717304419241,4.88493,3821.5,3821.0,0.549]
[1717304419394,2.61683,3821.5,3821.0,0.549]
[1717304419731,2.61683,3821.5,3821.2,0.549]
[1717304420106,2.61654,3821.9,3821.4,0.549]
[1717304420629,2.61654,3821.9,3820.9,2.61711]
[1717304420630,2.61654,3821.9,3821.2,0.549]
[1717304420828,2.61654,3821.9,3821.2,0.865611]
[1717304423147,2.61654,3821.9,3821.3,0.549]
[1717304423629,2.61654,3821.9,3821.3,0.449]
[1717304428640,2.61654,3821.9,3821.1,0.549]
[1717304431846,2.4349,3821.6,3820.8,0.549]
[1717304432016,2.4349,3821.6,3820.5,5.61739]
[1717304432221,2.4349,3821.6,3820.8,0.549]
[1717304434013,2.61677,3821.5,3820.8,0.549]
[1717304437123,2.61677,3821.5,3821.0,0.549]
[1717304439324,2.4645,3821.2,3820.1,2.61767]
[1717304439528,2.4645,3821.2,3820.6,0.549]
[1717304439744,2.4645,3821.2,3820.2,4.0]
[1717304440065,2.4645,3821.2,3820.4,0.549]
[1717304440422,2.61707,3821.1,3820.4,0.549]
[1717304441326,2.61707,3821.1,3820.1,2.61767]
[1717304441678,2.61707,3821.1,3820.3,0.549]
[1717304442034,2.61707,3821.1,3820.9,0.549]
[1717304442627,2.61707,3821.1,3820.7,0.549]
[1717304443052,2.61707,3821.1,3820.3,2.61758]
[1717304443230,2.61707,3821.1,3820.7,0.549]
[1717304444131,2.61707,3821.1,3820.3,2.61758]
[1717304444352,2.4645,3821.0,3820.3,3.15209347]
[1717304444530,2.4645,3821.0,3820.5,0.549]
[1717304446976,2.6172,3820.9,3820.1,0.30325468]
[1717304447177,2.6172,3820.9,3820.3,0.549]
[1717304448173,2.6172,3820.9,3820.1,0.30325468]
[1717304448481,2.6172,3820.9,3820.2,0.549]
[1717304449332,2.6172,3820.9,3820.0,3.0]
[1717304449531,2.6172,3820.9,3820.3,0.549]
[1717304449758,2.61734,3820.7,3820.0,3.0]
[1717304450075,2.61734,3820.7,3820.1,0.549]
[1717304450977,2.61734,3820.7,3819.9,2.61783]
[1717304451186,2.61665,3821.7,3819.6,5.4243]
[1717304451187,2.4972,3820.4,3819.8,0.549]
[1717304451334,2.4972,3820.4,3819.5,2.61807]
[1717304451663,2.4972,3820.4,3819.8,0.549]
[1717304451871,2.61759,3820.3,3819.8,0.549]
[1717304452073,2.61759,3820.3,3819.6,4.0]
[1717304452237,2.61759,3820.3,3819.7,0.549]
[1717304453580,2.61759,3820.3,3819.9,0.549]
[1717304455877,2.4972,3820.4,3819.9,0.549]
[1717304457981,5.11458,3820.7,3820.1,0.549]
[1717304462807,5.11458,3820.7,3819.9,0.549]
[1717304463800,2.61752,3820.5,3819.7,2.618]
[1717304464019,2.4513,3820.4,3819.8,0.549]
[1717304464222,2.4513,3820.4,3819.7,2.618]
[1717304464369,2.4513,3820.4,3819.7,3.167]
[1717304464572,2.4513,3820.4,3819.7,3.4837]
[1717304469600,2.4513,3820.4,3819.9,0.549]
[1717304469796,2.6176,3820.3,3819.9,0.549]
[1717304469999,2.6176,3820.3,3819.7,0.549]
[1717304473418,2.6176,3820.3,3819.4,3.0]
[1717304473644,2.61775,3820.1,3819.5,0.549]
[1717304476321,2.4513,3820.0,3819.3,3.16721]
[1717304479394,2.4513,3820.0,3819.3,3.783931]
[1717304480127,2.61788,3819.9,3819.3,0.616721]
[1717304480431,2.61788,3819.9,3819.2,0.549]
[1717304480630,2.61788,3819.9,3819.0,5.61846]
[1717304480942,2.2622,3819.8,3819.0,6.16746]
[1717304481739,2.61804,3819.7,3818.7,2.61868]
[1717304482027,2.2622,3819.6,3819.0,0.549]
[1717304483128,2.2622,3819.6,3818.8,4.549]
[1717304483337,2.61816,3819.5,3818.7,2.61868]
[1717304483523,2.2622,3819.4,3818.4,3.0]
[1717304483701,2.2622,3819.4,3818.6,0.549]
[1717304484230,2.61828,3819.3,3818.6,0.549]
[1717304485120,2.61828,3819.3,3818.5,4.0]
[1717304485329,2.61828,3819.3,3818.5,4.549]
[1717304485500,2.2622,3819.2,3818.5,4.549]
[1717304485908,2.2622,3819.2,3818.5,4.0]
[1717304486201,2.61844,3819.1,3818.3,3.1679]
[1717304486533,2.61844,3819.1,3818.3,2.6189]
[1717304486698,2.61844,3819.1,3818.4,0.549]
[1717304489532,2.61844,3819.1,3818.6,0.549]
[1717304491835,2.61818,3819.5,3818.6,2.61875]
[1717304492041,7.32,3820.0,3819.3,0.549]
[1717304492042,2.61793,3819.9,3819.3,0.549]
[1717304492214,4.88596,3820.3,3819.6,0.549]
[1717304496465,4.88596,3820.3,3819.2,2.3144]
[1717304496763,4.88596,3820.3,3819.5,0.549]
[1717304496963,2.6178,3820.0,3819.2,2.3144]
[1717304497131,2.6178,3820.0,3819.4,0.549]
[1717304501469,2.6178,3820.0,3819.2,2.3144]
[1717304501777,2.6178,3820.0,3819.3,1.042275]
[1717304504262,2.6178,3820.0,3819.3,0.493275]
[1717304504460,2.6178,3820.0,3819.3,1.042275]
[1717304504675,2.6178,3820.0,3819.5,0.549]
[1717304505570,2.6178,3820.0,3819.3,1.042275]
[1717304505781,2.6178,3820.0,3819.4,0.5975025]
[1717304506172,2.6178,3820.0,3819.5,0.549]
[1717304508747,2.6178,3820.0,3819.4,0.5975025]
[1717304510793,2.6178,3820.0,3819.5,0.549]
[1717304512151,2.2683,3820.3,3819.5,0.549]
[1717304512369,2.2683,3820.3,3819.6,0.37647225]
[1717304513172,2.2683,3820.3,3819.6,2.99453225]
[1717304513503,2.61759,3820.4,3819.9,0.549]
[1717304516715,2.3909,3820.5,3819.9,0.549]
[1717304519808,2.3909,3820.5,3819.8,2.61788]
[1717304519988,2.3909,3820.5,3819.8,3.16688]
[1717304521283,2.3909,3820.5,3819.8,3.75104523]
[1717304523019,2.3909,3820.5,3819.8,3.20204523]
[1717304523220,2.3909,3820.5,3819.9,0.549]
[1717304525615,2.3909,3820.5,3819.8,2.61788]
[1717304525820,5.0084,3820.5,3819.8,2.61788]
[1717304526025,5.0084,3820.5,3819.6,0.92547225]
[1717304530835,5.0084,3820.5,3819.7,2.618]
[1717304531044,5.0084,3820.5,3819.7,3.26280748]
[1717304532418,5.0084,3820.5,3819.8,0.549]
[1717304533128,2.411,3820.7,3820.1,0.549]
[1717304534801,2.61721,3820.9,3820.1,3.16667]
[1717304536024,2.411,3821.0,3820.3,2.61753]
[1717304536225,2.411,3821.0,3820.3,3.428283]
[1717304542999,2.411,3821.0,3820.3,2.879283]
[1717304543161,2.411,3821.0,3820.3,2.61753]
[1717304543364,2.411,3821.0,3820.3,3.16653]
[1717304543567,5.02817,3821.0,3820.0,2.61779]
[1717304543801,2.61717,3821.0,3820.3,0.549]
[1717304544012,2.3125,3820.9,3820.3,0.549]
[1717304550345,2.3125,3820.9,3820.3,0.865665]
[1717304551336,2.61717,3821.0,3820.3,0.865665]
[1717304551891,2.61717,3821.0,3820.3,3.145665]
[1717304552092,2.61717,3821.0,3820.3,0.865665]
[1717304557332,2.61717,3821.0,3820.3,0.549]
[1717304561105,2.61717,3821.0,3820.2,2.61765]
[1717304561305,2.61717,3821.0,3820.3,0.549]
[1717304570447,2.61717,3821.0,3820.4,2.3248]
[1717304571251,2.61717,3821.0,3820.5,0.549]
[1717304577957,7.32,3822.0,3820.9,0.549]
[1717304578165,2.4737,3822.1,3821.3,0.549]
[1717304578377,0.56572667,3822.0,3821.3,0.549]
[1717304578553,2.61657,3821.8,3821.3,0.549]
[1717304579059,2.2549,3822.4,3821.5,2.4921]
[1717304579244,2.61623,3822.3,3821.7,0.549]
[1717304581769,2.61623,3822.3,3821.7,1.11479]
[1717304585776,2.61623,3822.3,3821.7,0.549]
[1717304586072,4.87113,3822.3,3821.6,0.549]
[1717304586839,4.87113,3822.3,3821.5,2.4921]
[1717304587164,4.87113,3822.3,3821.6,0.549]
[1717304589428,4.87113,3822.3,3821.5,3.00299]
[1717304589635,4.87113,3822.3,3821.6,0.549]
[1717304593339,2.61645,3822.0,3821.6,0.549]
[1717304593511,2.61645,3822.0,3821.5,3.00299]
[1717304593702,2.61645,3822.0,3821.5,2.4921]
[1717304595648,2.61645,3822.0,3821.4,0.549]
[1717304596006,2.61645,3822.0,3821.6,0.549]
[1717304600158,2.61645,3822.0,3821.5,2.2887]
[1717304600504,2.61645,3822.0,3821.4,0.549]
[1717304600718,2.61645,3822.0,3821.4,3.9039]
[1717304601841,4.93155,3822.0,3821.4,3.0]
[1717304602025,4.93155,3822.0,3821.3,2.416]
[1717304602226,4.93155,3822.0,3821.3,5.416]
[1717304602659,4.93155,3822.0,3821.4,3.0]
[1717304602861,2.61663,3821.7,3821.1,3.0]
[1717304603023,2.61663,3821.7,3821.2,2.416]
[1717304603238,2.61642,3822.1,3821.3,0.549]
[1717304603471,2.61642,3822.1,3821.3,3.549]
[1717304604140,2.61642,3822.1,3821.7,0.549]
[1717304604381,2.61642,3822.1,3821.8,2.416]
[1717304605844,2.61642,3822.1,3821.9,0.549]
[1717304607355,2.3151,3822.8,3821.9,0.549]
[1717304607356,2.61616,3822.4,3821.9,0.549]
[1717304607556,2.61616,3822.4,3822.1,0.549]
[1717304607747,2.61616,3822.4,3821.9,0.549]
[1717304607981,2.61616,3822.4,3822.0,0.32615]
[1717304615087,2.3151,3822.3,3822.0,0.32615]
[1717304615428,2.3151,3822.3,3821.8,0.8455]
[1717304616135,2.3151,3822.3,3821.8,0.2965]
[1717304616487,2.3151,3822.3,3821.6,3.549]
[1717304616689,2.61631,3822.2,3821.6,3.0]
[1717304616891,2.61631,3822.2,3821.5,0.549]
[1717304617108,2.61631,3822.2,3821.4,3.0]
[1717304617319,2.61631,3822.2,3821.4,3.549]
[1717304617484,2.61631,3822.2,3821.6,0.549]
[1717304619338,2.61631,3822.2,3821.4,4.4875197]
[1717304622496,2.61631,3822.2,3821.7,0.549]
[1717304623586,2.61631,3822.2,3821.7,3.549]
[1717304635778,2.61631,3822.2,3821.7,3.0]
[1717304636076,2.61631,3822.2,3821.6,2.9307]
[1717304636287,2.61631,3822.2,3821.7,3.0]
[1717304637077,2.61631,3822.2,3821.6,1.14271097]
[1717304641179,2.401,3822.1,3821.6,1.14271097]
[1717304644696,2.401,3822.1,3821.6,0.59371097]
[1717304645063,2.401,3822.1,3821.5,0.549]
[1717304645261,2.401,3822.1,3821.4,3.9385197]
[1717304645570,2.401,3822.1,3821.4,4.4875197]
[1717304649700,2.3464,3821.4,3820.4,0.54952078]
[1717304649903,2.61703,3821.2,3820.6,4.0]
[1717304650063,2.61703,3821.2,3820.8,0.549]
[1717304651766,2.3464,3821.4,3821.0,0.549]
[1717304652007,4.96316,3821.6,3821.0,0.549]
[1717304652506,4.96316,3821.6,3820.7,3.0]
[1717304652694,4.96316,3821.6,3820.9,0.549]
[1717304654408,2.61711,3821.1,3820.7,3.0]
[1717304654582,2.61711,3821.1,3820.7,0.549]
[1717304655973,2.61711,3821.1,3820.9,0.549]
[1717304657713,2.61683,3821.5,3820.9,0.549]
[1717304659184,2.61683,3821.5,3821.1,0.549]
[1717304659414,2.3464,3821.6,3821.3,0.549]
[1717304659728,2.3502,3821.8,3821.3,0.549]
[1717304660227,2.3502,3821.8,3821.1,0.29642]
[1717304660442,2.3502,3821.8,3821.3,0.549]